fUSD/lending_fUSD_20250111
["ID","MTS","AMOUNT","RATE_DAILY","PERIOD"]
[348512292,1736597446453,-171.51207042,0.00010171,2]
[348512293,1736597446462,-500.0,0.00010171,2]
[348512294,1736597446471,-500.0,0.00010171,2]
[348512295,1736597446480,-500.0,0.00010171,2]
[348512296,1736597446489,-168.89,0.00010171,2]
[348512297,1736597446498,-833.11,0.00010171,2]
[348512298,1736597446507,-500.0,0.00010171,2]
[348512299,1736597446515,-500.0,0.00010171,2]
[348512300,1736597446524,-500.0,0.00010171,2]
[348512301,1736597446533,-500.0,0.00010171,2]
[348512302,1736597446542,-500.0,0.00010171,2]
[348512303,1736597446551,-500.0,0.00010171,2]
[348512304,1736597446560,-500.0,0.00010171,2]
[348512305,1736597446569,-500.0,0.00010171,2]
[348512306,1736597446578,-500.0,0.00010171,2]
[348512307,1736597446587,-500.0,0.00010171,2]
[348512308,1736597446596,-500.0,0.00010171,2]
[348512309,1736597446605,-500.0,0.00010171,2]
[348512310,1736597446615,-500.0,0.00010171,2]
[348512311,1736597446624,-500.0,0.00010171,2]
[348512312,1736597446633,-500.0,0.00010171,2]
[348512313,1736597446642,-500.0,0.00010171,2]
[348512314,1736597446652,-500.0,0.00010171,2]
[348512315,1736597446661,-500.0,0.00010171,2]
[348512316,1736597446671,-500.0,0.00010171,2]
[348512317,1736597446680,-500.0,0.00010171,2]
[348512318,1736597446691,-500.0,0.00010171,2]
[348512319,1736597446700,-500.0,0.00010171,2]
[348512320,1736597446710,-500.0,0.00010171,2]
[348512321,1736597446719,-500.0,0.00010171,2]
[348512322,1736597446729,-500.0,0.00010171,2]
[348512323,1736597446739,-500.0,0.00010171,2]
[348512324,1736597446749,-500.0,0.00010171,2]
[348512325,1736597446758,-476.65,0.00010171,2]
[348512326,1736597446768,-500.0,0.00010171,2]
[348512327,1736597446778,-500.0,0.00010171,2]
[348512328,1736597446787,-500.0,0.00010171,2]
[348512329,1736597446797,-500.0,0.00010171,2]
[348512330,1736597446807,-500.0,0.00010171,2]
[348512331,1736597446816,-500.0,0.00010171,2]
[348512332,1736597446826,-500.0,0.00010171,2]
[348512333,1736597446835,-500.0,0.00010171,2]
[348512334,1736597446844,-291.50936908,0.00010171,2]
[348512335,1736597446853,-500.0,0.00010171,2]
[348512336,1736597446863,-392.19398374,0.00010171,2]
[348512337,1736597446872,-339.99063092,0.00010171,2]
[348512338,1736597446882,-500.0,0.00010171,2]
[348512339,1736597446891,-655.39,0.00010171,2]
[348512340,1736597446900,-500.0,0.00010171,2]
[348512341,1736597446909,-500.0,0.00010171,2]
[348512342,1736597446918,-500.0,0.00010171,2]
[348512343,1736597446928,-500.0,0.00010171,2]
[348512344,1736597446937,-500.0,0.00010171,2]
[348512345,1736597446948,-500.0,0.00010171,2]
[348512346,1736597446957,-500.0,0.00010171,2]
[348512347,1736597446966,-500.0,0.00010171,2]
[348512348,1736597446976,-500.0,0.00010171,2]
[348512349,1736597446985,-500.0,0.00010171,2]
[348512350,1736597446994,-500.0,0.00010171,2]
[348512351,1736597447004,-500.0,0.00010171,2]
[348512352,1736597447014,-500.0,0.00010171,2]
[348512353,1736597447023,-500.0,0.00010171,2]
[348512354,1736597447033,-500.0,0.00010171,2]
[348512355,1736597447042,-500.0,0.00010171,2]
[348512356,1736597447052,-500.0,0.00010171,2]
[348512357,1736597447061,-500.0,0.00010171,2]
[348512358,1736597447072,-500.0,0.00010171,2]
[348512359,1736597447081,-500.0,0.00010171,2]
[348512360,1736597447090,-500.0,0.00010171,2]
[348512361,1736597447100,-500.0,0.00010171,2]
[348512362,1736597447109,-500.0,0.00010171,2]
[348512363,1736597447120,-500.0,0.00010171,2]
[348512364,1736597447130,-500.0,0.00010171,2]
[348512365,1736597447139,-500.0,0.00010171,2]
[348512366,1736597447148,-500.0,0.00010171,2]
[348512367,1736597447157,-500.0,0.00010171,2]
[348512368,1736597447167,-500.0,0.00010171,2]
[348512369,1736597447176,-500.0,0.00010171,2]
[348512370,1736597447185,-681.11,0.00010171,2]
[348512371,1736597447196,-500.0,0.00010171,2]
[348512372,1736597447205,-500.0,0.00010171,2]
[348512373,1736597447214,-500.0,0.00010171,2]
[348512374,1736597447224,-500.0,0.00010171,2]
[348512375,1736597447233,-500.0,0.00010171,2]
[348512376,1736597447242,-500.0,0.00010171,2]
[348512377,1736597447252,-517.6,0.00010171,2]
[348512378,1736597447261,-500.0,0.00010171,2]
[348512379,1736597447270,-500.0,0.00010171,2]
[348512380,1736597447280,-500.0,0.00010171,2]
[348512381,1736597447289,-500.0,0.00010171,2]
[348512382,1736597447298,-500.0,0.00010171,2]
[348512383,1736597447307,-500.0,0.00010171,2]
[348512384,1736597447316,-500.0,0.00010171,2]
[348512385,1736597447326,-500.0,0.00010171,2]
[348512386,1736597447335,-500.0,0.00010171,2]
[348512387,1736597447344,-500.0,0.00010171,2]
[348512388,1736597447354,-500.0,0.00010171,2]
[348512389,1736597447363,-500.0,0.00010171,2]
[348512390,1736597447372,-500.0,0.00010171,2]
[348512391,1736597447382,-500.0,0.00010171,2]
[348512392,1736597447391,-691.08,0.00010171,2]
[348512393,1736597447400,-500.0,0.00010171,2]
[348512394,1736597447410,-500.0,0.00010171,2]
[348512395,1736597447419,-500.0,0.00010171,2]
[348512396,1736597447428,-500.0,0.00010171,2]
[348512397,1736597447438,-500.0,0.00010171,2]
[348512398,1736597447449,-500.0,0.00010171,2]
[348512399,1736597447458,-500.0,0.00010171,2]
[348512400,1736597447467,-500.0,0.00010171,2]
[348512401,1736597447477,-500.0,0.00010171,2]
[348512402,1736597447486,-500.0,0.00010171,2]
[348512403,1736597447495,-500.0,0.00010171,2]
[348512404,1736597447504,-582.11,0.00010171,2]
[348512405,1736597447513,-500.0,0.00010171,2]
[348512406,1736597447523,-500.0,0.00010171,2]
[348512407,1736597447532,-765.4,0.00010171,2]
[348512408,1736597447541,-500.0,0.00010171,2]
[348512409,1736597447550,-500.0,0.00010171,2]
[348512410,1736597447561,-500.0,0.00010171,2]
[348512411,1736597447572,-701.52,0.00010171,2]
[348512412,1736597447584,-500.0,0.00010171,2]
[348512413,1736597447598,-500.0,0.00010171,2]
[348512414,1736597447607,-500.0,0.00010171,2]
[348512415,1736597447617,-500.0,0.00010171,2]
[348512416,1736597447627,-500.0,0.00010171,2]
[348512417,1736597447637,-500.0,0.00010171,2]
[348512418,1736597447646,-500.0,0.00010171,2]
[348512419,1736597447656,-500.0,0.00010171,2]
[348512420,1736597447665,-500.0,0.00010171,2]
[348512421,1736597447675,-500.0,0.00010171,2]
[348512422,1736597447684,-532.53,0.00010171,2]
[348512423,1736597447694,-500.0,0.00010171,2]
[348512424,1736597447704,-500.0,0.00010171,2]
[348512425,1736597447713,-151.38311604,0.00010171,2]
[348512426,1736597447723,-500.0,0.00010171,2]
[348512427,1736597447733,-625.25,0.00010171,2]
[348512428,1736597447742,-598.82,0.00010171,2]
[348512429,1736597447753,-500.0,0.00010171,2]
[348512430,1736597447766,-500.0,0.00010171,2]
[348512431,1736597447777,-292.19,0.00010171,2]
[348512432,1736597447790,-500.0,0.00010171,2]
[348512433,1736597447803,-339.52,0.00010171,2]
[348512434,1736597447812,-154.28,0.00010171,2]
[348512435,1736597447822,-619.67,0.00010171,2]
[348512436,1736597447831,-500.0,0.00010171,2]
[348512437,1736597447840,-500.0,0.00010171,2]
[348512438,1736597447849,-500.0,0.00010171,2]
[348512439,1736597447858,-500.0,0.00010171,2]
[348512440,1736597447867,-500.0,0.00010171,2]
[348512441,1736597447876,-500.0,0.00010171,2]
[348512442,1736597447885,-500.0,0.00010171,2]
[348512443,1736597447893,-500.0,0.00010171,2]
[348512444,1736597447903,-500.0,0.00010171,2]
[348512445,1736597447912,-500.0,0.00010171,2]
[348512446,1736597447921,-500.0,0.00010171,2]
[348512447,1736597447929,-591.53,0.00010171,2]
[348512448,1736597447938,-500.0,0.00010171,2]
[348512449,1736597447950,-500.0,0.00010171,2]
[348512450,1736597447960,-709.37,0.00010171,2]
[348512451,1736597447970,-500.0,0.00010171,2]
[348512452,1736597447979,-500.0,0.00010171,2]
[348512453,1736597447987,-684.77,0.00010171,2]
[348512454,1736597447997,-500.0,0.00010171,2]
[348512455,1736597448006,-500.0,0.00010171,2]
[348512456,1736597448015,-500.0,0.00010171,2]
[348512457,1736597448025,-500.0,0.00010171,2]
[348512458,1736597448034,-500.0,0.00010171,2]
[348512459,1736597448044,-539.46333835,0.00010171,2]
[348512460,1736597448053,-572.77,0.00010171,2]
[348512461,1736597448062,-500.0,0.00010171,2]
[348512462,1736597448072,-500.0,0.00010171,2]
[348512463,1736597448081,-500.0,0.00010171,2]
[348512464,1736597448090,-500.0,0.00010171,2]
[348512465,1736597448099,-500.0,0.00010171,2]
[348512466,1736597448109,-500.0,0.00010171,2]
[348512467,1736597448119,-500.0,0.00010171,2]
[348512468,1736597448129,-500.0,0.00010171,2]
[348512469,1736597448138,-500.0,0.00010171,2]
[348512470,1736597448147,-500.0,0.00010171,2]
[348512471,1736597448156,-500.0,0.00010171,2]
[348512472,1736597448166,-500.0,0.00010171,2]
[348512473,1736597448175,-500.0,0.00010171,2]
[348512474,1736597448185,-500.0,0.00010171,2]
[348512475,1736597448195,-500.0,0.00010171,2]
[348512476,1736597448205,-500.0,0.00010171,2]
[348512477,1736597448214,-521.87,0.00010171,2]
[348512478,1736597448223,-1019.91,0.00010171,2]
[348512479,1736597448233,-500.0,0.00010171,2]
[348512480,1736597448243,-500.0,0.00010171,2]
[348512481,1736597448252,-500.0,0.00010171,2]
[348512482,1736597448261,-500.0,0.00010171,2]
[348512483,1736597448270,-500.0,0.00010171,2]
[348512484,1736597448280,-500.0,0.00010171,2]
[348512485,1736597448289,-500.0,0.00010171,2]
[348512486,1736597448298,-500.0,0.00010171,2]
[348512487,1736597448308,-500.0,0.00010171,2]
[348512488,1736597448317,-661.56,0.00010171,2]
[348512489,1736597448326,-1694.7,0.00010171,2]
[348512490,1736597448335,-500.0,0.00010171,2]
[348512491,1736597448344,-500.0,0.00010171,2]
[348512492,1736597448354,-638.06,0.00010171,2]
[348512493,1736597448363,-500.0,0.00010171,2]
[348512494,1736597448372,-500.0,0.00010171,2]
[348512495,1736597448382,-500.0,0.00010171,2]
[348512496,1736597448391,-500.0,0.00010171,2]
[348512497,1736597448401,-500.0,0.00010171,2]
[348512498,1736597448411,-500.0,0.00010171,2]
[348512499,1736597448420,-500.0,0.00010171,2]
[348512500,1736597448430,-500.0,0.00010171,2]
[348512501,1736597448439,-500.0,0.00010171,2]
[348512502,1736597448452,-500.0,0.00010171,2]
[348512503,1736597448461,-500.0,0.00010171,2]
[348512504,1736597448471,-500.0,0.00010171,2]
[348512505,1736597448481,-500.0,0.00010171,2]
[348512506,1736597448490,-500.0,0.00010171,2]
[348512507,1736597448499,-500.0,0.00010171,2]
[348512508,1736597448508,-1112.5,0.00010171,2]
[348512509,1736597448517,-500.0,0.00010171,2]
[348512510,1736597448525,-566.34,0.00010171,2]
[348512511,1736597448534,-555.33,0.00010171,2]
[348512512,1736597448543,-500.0,0.00010171,2]
[348512513,1736597448552,-500.0,0.00010171,2]
[348512514,1736597448562,-500.0,0.00010171,2]
[348512515,1736597448571,-500.0,0.00010171,2]
[348512516,1736597448580,-500.0,0.00010171,2]
[348512517,1736597448590,-500.0,0.00010171,2]
[348512518,1736597448599,-500.0,0.00010171,2]
[348512519,1736597448608,-500.0,0.00010171,2]
[348512520,1736597448617,-500.0,0.00010171,2]
[348512521,1736597448628,-561.34,0.00010171,2]
[348512522,1736597448638,-543.89,0.00010171,2]
[348512523,1736597448647,-500.0,0.00010171,2]
[348512524,1736597448656,-301.60765889,0.00010171,2]
[348512525,1736597448665,-525.77,0.00010171,2]
[348512526,1736597448675,-500.0,0.00010171,2]
[348512527,1736597448684,-500.0,0.00010171,2]
[348512528,1736597448695,-500.0,0.00010171,2]
[348512529,1736597448704,-500.0,0.00010171,2]
[348512530,1736597448713,-500.0,0.00010171,2]
[348512531,1736597448723,-500.0,0.00010171,2]
[348512532,1736597448732,-500.0,0.00010171,2]
[348512533,1736597448741,-500.0,0.00010171,2]
[348512534,1736597448750,-500.0,0.00010171,2]
[348512535,1736597448760,-500.0,0.00010171,2]
[348512536,1736597448769,-500.0,0.00010171,2]
[348512537,1736597448778,-500.0,0.00010171,2]
[348512538,1736597448787,-500.0,0.00010171,2]
[348512539,1736597448796,-500.0,0.00010171,2]
[348512540,1736597448805,-500.0,0.00010171,2]
[348512541,1736597448814,-500.0,0.00010171,2]
[348512542,1736597448823,-500.0,0.00010171,2]
[348512543,1736597448833,-500.0,0.00010171,2]
[348512544,1736597448842,-502.06370973,0.00010171,2]
[348512545,1736597448851,-500.0,0.00010171,2]
[348512546,1736597448861,-500.0,0.00010171,2]
[348512547,1736597448870,-500.0,0.00010171,2]
[348512548,1736597448879,-500.0,0.00010171,2]
[348512549,1736597448888,-500.0,0.00010171,2]
[348512550,1736597448897,-500.0,0.00010171,2]
[348512551,1736597448906,-500.0,0.00010171,2]
[348512552,1736597448915,-1978.95,0.00010171,2]
[348512553,1736597448925,-500.0,0.00010171,2]
[348512554,1736597448934,-500.0,0.00010171,2]
[348512555,1736597448944,-500.0,0.00010171,2]
[348512556,1736597448957,-484.92329969,0.00010171,2]
[348512557,1736597448966,-500.0,0.00010171,2]
[348512558,1736597448975,-938.93,0.00010171,2]
[348512559,1736597448983,-500.0,0.00010171,2]
[348512560,1736597448992,-500.0,0.00010171,2]
[348512561,1736597449001,-500.0,0.00010171,2]
[348512562,1736597449010,-500.0,0.00010171,2]
[348512563,1736597449020,-500.0,0.00010171,2]
[348512564,1736597449029,-500.0,0.00010171,2]
[348512565,1736597449038,-500.0,0.00010171,2]
[348512566,1736597449047,-349.95,0.00010171,2]
[348512567,1736597449056,-500.0,0.00010171,2]
[348512568,1736597449065,-185.45404616,0.00010171,2]
[348512569,1736597449075,-500.0,0.00010171,2]
[348512570,1736597449084,-1060.23,0.00010171,2]
[348512571,1736597449093,-500.0,0.00010171,2]
[348512572,1736597449102,-500.0,0.00010171,2]
[348512573,1736597449112,-500.0,0.00010171,2]
[348512574,1736597449121,-500.0,0.00010171,2]
[348512575,1736597449130,-500.0,0.00010172,2]
[348512576,1736597449140,-500.0,0.00010172,2]
[348512577,1736597449149,-500.0,0.00010172,2]
[348512578,1736597449159,-500.0,0.00010172,2]
[348512579,1736597449169,-500.75349317,0.00010172,2]
[348512580,1736597449354,-501.27158793,0.00010172,2]
[348512581,1736597449364,-413.07303945,0.00010172,2]
[348512582,1736597449373,-300.55557518,0.00010172,2]
[348512583,1736597449382,-249.25140541,0.00010172,2]
[348512584,1736597449392,-500.0,0.00010172,2]
[348512585,1736597449401,-501.40443711,0.00010172,2]
[348512586,1736597449411,-501.34363017,0.00010172,2]
[348512587,1736597449420,-500.0,0.00010172,2]
[348512588,1736597449429,-500.70845695,0.00010172,2]
[348512589,1736597449439,-1610.53,0.00010172,2]
[348512590,1736597449450,-1002.7,0.00010172,2]
[348512591,1736597449460,-630.45,0.00010173,2]
[348512592,1736597449469,-500.0,0.00010173,2]
[348512593,1736597449478,-659.46,0.00010173,2]
[348512594,1736597449488,-728.65,0.00010173,2]
[348512595,1736597449496,-698.29,0.00010173,2]
[348512596,1736597449506,-803.99,0.00010173,2]
[348512597,1736597449515,-924.6,0.00010173,2]
[348512598,1736597449524,-1742.05,0.00010173,2]
[348512599,1736597449533,-3784.66,0.00010173,2]
[348512600,1736597449542,-500.0,0.00010173,2]
[348512601,1736597449551,-500.0,0.00010173,2]
[348512602,1736597449561,-500.0,0.00010173,2]
[348512603,1736597449570,-1805.15,0.00010173,2]
[348512604,1736597449580,-500.0,0.00010173,2]
[348512605,1736597449589,-500.0,0.00010173,2]
[348512606,1736597449598,-1444.75,0.00010173,2]
[348512607,1736597449608,-627.6,0.00010173,2]
[348512608,1736597449619,-875.89,0.00010173,2]
[348512609,1736597449631,-1000.0,0.00010173,2]
[348512610,1736597449641,-713.42,0.00010173,2]
[348512611,1736597449650,-500.0,0.00010173,2]
[348512612,1736597449659,-501.63531465,0.0001021,2]
[348512613,1736597449669,-1000.0,0.00010231,2]
[348512614,1736597449678,-152.0,0.0001024,3]
[348512615,1736597449688,-938.4,0.00010272,2]
[348512616,1736597449699,-1026.97,0.00010272,2]
[348512617,1736597449708,-151.0,0.00010273,2]
[348512618,1736597449717,-461.26,0.00010273,2]
[348512619,1736597449726,-1034.56,0.00010273,2]
[348512620,1736597449735,-1088.7,0.00010273,2]
[348512621,1736597449745,-842.03,0.00010273,2]
[348512622,1736597449754,-501.63531465,0.00010314,2]
[348512623,1736597449763,-1268.0,0.00010401,2]
[348512624,1736597449772,-2015.0,0.00010401,2]
[348512625,1736597449782,-566.0,0.00010401,2]
[348512626,1736597449790,-150.0,0.00010401,2]
[348512627,1736597449799,-635.0,0.00010401,2]
[348512628,1736597449808,-1861.0,0.00010401,2]
[348512629,1736597449817,-820.0,0.00010401,2]
[348512630,1736597449826,-2944.0,0.00010401,2]
[348512631,1736597449835,-915.0,0.00010401,2]
[348512632,1736597449845,-1259.0,0.00010401,2]
[348512633,1736597449854,-3978.0,0.00010401,2]
[348512634,1736597449863,-537.0,0.00010401,2]
[348512635,1736597449872,-501.63531465,0.00010417,2]
[348512636,1736597449881,-1000.0,0.00010421,2]
[348512637,1736597449891,-911.95,0.00010424,2]
[348512638,1736597449900,-889.35,0.00010444,2]
[348512639,1736597449909,-756.17,0.00010444,2]
[348512640,1736597449918,-500.0,0.00010444,2]
[348512641,1736597449927,-500.0,0.00010444,2]
[348512642,1736597449936,-500.0,0.00010444,2]
[348512643,1736597449950,-864.479159,0.00010444,2]
[348512644,1736597449959,-628.28,0.00010444,2]
[348512645,1736597449968,-500.0,0.00010444,2]
[348512646,1736597449976,-845.669752,0.00010444,2]
[348512647,1736597449987,-343.57,0.00010444,2]
[348512648,1736597449995,-500.0,0.00010444,2]
[348512649,1736597450004,-587.62,0.00010444,2]
[348512650,1736597450013,-2203.32,0.00010444,2]
[348512651,1736597450023,-500.0,0.00010444,2]
[348512652,1736597450033,-500.0,0.00010444,2]
[348512653,1736597450042,-500.0,0.00010444,2]
[348512654,1736597450052,-500.0,0.00010444,2]
[348512655,1736597450061,-500.0,0.00010444,2]
[348512656,1736597450070,-555.27,0.00010444,2]
[348512657,1736597450079,-500.0,0.00010444,2]
[348512658,1736597450087,-500.0,0.00010444,2]
[348512659,1736597450096,-500.0,0.00010444,2]
[348512660,1736597450105,-500.0,0.00010444,2]
[348512661,1736597450114,-500.0,0.00010444,2]
[348512662,1736597450123,-500.0,0.00010444,2]
[348512663,1736597450131,-500.0,0.00010444,2]
[348512664,1736597450140,-500.0,0.00010444,2]
[348512665,1736597450149,-500.0,0.00010444,2]
[348512666,1736597450158,-500.0,0.00010444,2]
[348512667,1736597450167,-2440.07,0.00010444,2]
[348512668,1736597450176,-500.0,0.00010444,2]
[348512669,1736597450185,-500.0,0.00010444,2]
[348512670,1736597450195,-500.0,0.00010444,2]
[348512671,1736597450204,-500.0,0.00010444,2]
[348512672,1736597450213,-500.0,0.00010444,2]
[348512673,1736597450223,-542.81,0.00010444,2]
[348512674,1736597450232,-2168.47,0.00010444,2]
[348512675,1736597450242,-500.0,0.00010444,2]
[348512676,1736597450252,-837.11,0.00010444,2]
[348512677,1736597450262,-500.0,0.00010444,2]
[348512678,1736597450271,-500.0,0.00010444,2]
[348512679,1736597450281,-1302.44,0.00010444,2]
[348512680,1736597450290,-952.74,0.00010444,2]
[348512681,1736597450299,-500.0,0.00010444,2]
[348512682,1736597450309,-716.39,0.00010444,2]
[348512683,1736597450318,-986.22,0.00010444,2]
[348512684,1736597450327,-500.0,0.00010444,2]
[348512685,1736597450336,-643.61,0.00010444,2]
[348512686,1736597450345,-500.0,0.00010444,2]
[348512687,1736597450354,-2253.75,0.00010444,2]
[348512688,1736597450363,-500.0,0.00010444,2]
[348512689,1736597450372,-500.0,0.00010444,2]
[348512690,1736597450380,-564.90079383,0.00010444,2]
[348512691,1736597450389,-543.99,0.00010444,2]
[348512692,1736597450398,-500.0,0.00010444,2]
[348512693,1736597450407,-916.36,0.00010444,2]
[348512694,1736597450416,-500.0,0.00010444,2]
[348512695,1736597450425,-500.0,0.00010444,2]
[348512696,1736597450434,-500.0,0.00010444,2]
[348512697,1736597450444,-557.78,0.00010444,2]
[348512698,1736597450453,-578.34,0.00010444,2]
[348512699,1736597450462,-500.0,0.00010444,2]
[348512700,1736597450471,-500.0,0.00010444,2]
[348512701,1736597450479,-955.55,0.00010444,2]
[348512702,1736597450488,-500.0,0.00010444,2]
[348512703,1736597450498,-2737.36,0.00010444,2]
[348512704,1736597450507,-500.0,0.00010444,2]
[348512705,1736597450517,-543.37,0.00010444,2]
[348512706,1736597450527,-500.0,0.00010444,2]
[348512707,1736597450537,-1169.62,0.00010444,2]
[348512708,1736597450546,-1072.01,0.00010444,2]
[348512709,1736597450555,-500.0,0.00010444,2]
[348512710,1736597450565,-500.0,0.00010444,2]
[348512711,1736597450574,-1644.64,0.00010444,2]
[348512712,1736597450585,-865.21,0.00010444,2]
[348512713,1736597450595,-1683.29,0.00010444,2]
[348512714,1736597450604,-1378.72,0.00010444,2]
[348512715,1736597450613,-2661.33,0.00010444,2]
[348512716,1736597450622,-1005.4,0.00010444,2]
[348512717,1736597450633,-500.0,0.00010444,2]
[348512718,1736597450643,-3163.08,0.00010444,2]
[348512719,1736597450651,-716.64,0.00010444,2]
[348512720,1736597450660,-3026.43,0.00010444,2]
[348512721,1736597450669,-927.48,0.00010444,2]
[348512722,1736597450678,-1692.93,0.00010444,2]
[348512723,1736597450686,-1249.42,0.00010444,2]
[348512724,1736597450697,-500.0,0.00010444,2]
[348512725,1736597450706,-1182.11,0.00010444,2]
[348512726,1736597450715,-1080.18,0.00010444,2]
[348512727,1736597450725,-1426.27,0.00010444,2]
[348512728,1736597450734,-1995.2,0.00010444,2]
[348512729,1736597450743,-562.36,0.00010444,2]
[348512730,1736597450752,-765.62,0.00010444,2]
[348512731,1736597450761,-538.93,0.00010444,2]
[348512732,1736597450770,-1456.54,0.00010444,2]
[348512733,1736597450779,-1159.75,0.00010444,2]
[348512734,1736597450788,-1113.67,0.00010444,2]
[348512735,1736597450796,-500.0,0.00010444,2]
[348512736,1736597450805,-1067.27,0.00010444,2]
[348512737,1736597450814,-500.0,0.00010444,2]
[348512738,1736597450823,-1081.51,0.00010444,2]
[348512739,1736597450832,-3472.83,0.00010444,2]
[348512740,1736597450841,-847.86,0.00010444,2]
[348512741,1736597450850,-500.0,0.00010444,2]
[348512742,1736597450859,-856.18,0.00010444,2]
[348512743,1736597450868,-500.0,0.00010444,2]
[348512744,1736597450877,-500.0,0.00010444,2]
[348512745,1736597450885,-1358.71,0.00010444,2]
[348512746,1736597450894,-275.38,0.00010444,2]
[348512747,1736597450903,-184.76,0.00010444,2]
[348512748,1736597450912,-184.76,0.00010444,2]
[348512749,1736597450921,-151.6,0.00010445,2]
[348512750,1736597450930,-1000.29,0.00010445,2]
[348512751,1736597450939,-483.96423195,0.00010445,2]
[348512752,1736597450950,-500.0,0.00010445,2]
[348512753,1736597450959,-507.62,0.00010445,2]
[348512754,1736597450968,-500.0,0.00010445,2]
[348512755,1736597450977,-153.84,0.00010445,2]
[348512756,1736597450986,-500.0,0.00010445,2]
[348512757,1736597450995,-500.0,0.00010445,2]
[348512758,1736597451004,-500.0,0.00010445,2]
[348512759,1736597451013,-500.0,0.00010445,2]
[348512760,1736597451022,-500.0,0.00010445,2]
[348512761,1736597451031,-833.11,0.00010445,2]
[348512762,1736597451041,-500.0,0.00010445,2]
[348512763,1736597451050,-500.0,0.00010445,2]
[348512764,1736597451059,-500.0,0.00010445,2]
[348512765,1736597451068,-210.22,0.00010445,2]
[348512766,1736597451077,-500.0,0.00010445,2]
[348512767,1736597451090,-479.77685874,0.00010445,2]
[348512768,1736597451099,-500.0,0.00010445,2]
[348512769,1736597451108,-500.0,0.00010445,2]
[348512770,1736597451117,-500.0,0.00010445,2]
[348512771,1736597451126,-500.0,0.00010445,2]
[348512772,1736597451136,-500.0,0.00010445,2]
[348512773,1736597451146,-500.0,0.00010445,2]
[348512774,1736597451155,-500.0,0.00010445,2]
[348512775,1736597451165,-500.0,0.00010445,2]
[348512776,1736597451174,-190.97680667,0.00010445,2]
[348512777,1736597451183,-500.0,0.00010445,2]
[348512778,1736597451193,-500.0,0.00010445,2]
[348512779,1736597451203,-655.39,0.00010445,2]
[348512780,1736597451212,-500.0,0.00010445,2]
[348512781,1736597451222,-500.0,0.00010445,2]
[348512782,1736597451231,-500.0,0.00010445,2]
[348512783,1736597451241,-260.01266028,0.00010445,2]
[348512784,1736597451250,-500.0,0.00010445,2]
[348512785,1736597451260,-500.0,0.00010445,2]
[348512786,1736597451269,-500.0,0.00010445,2]
[348512787,1736597451278,-681.11,0.00010445,2]
[348512788,1736597451288,-500.0,0.00010445,2]
[348512789,1736597451298,-500.0,0.00010445,2]
[348512790,1736597451307,-500.0,0.00010445,2]
[348512791,1736597451316,-500.0,0.00010445,2]